[Event "22nd ETCC Women 2019"]
[Site "Batumi"]
[Date "2019.10.26"]
[Round "3.22"]
[White "Heinatz, Gundula"]
[Black "Vanduyfhuys, Daria"]
[Result "1/2-1/2"]
[ECO "A46"]
[WhiteElo "2175"]
[BlackElo "1983"]
[Annotator "NA"]
[PlyCount "118"]
[EventDate "2019.10.24"]
[EventType "team-tourn"]
[EventCountry "GEO"]
[SourceTitle "playchess.com"]
[Source "ChessBase"]
[SourceQuality "1"]
[WhiteTeam "Switzerland"]
[BlackTeam "Belgium"]
[WhiteTeamCountry "SUI"]
[BlackTeamCountry "BEL"]
[TimeControl "40/5400+30:1800+30"]

1. d4 {[%emt 0:00:00]} Nf6 {[%emt 0:00:00]} 2. Nf3 {[%emt 0:00:00]} e6 {[%emt 0:00:00]} 3. Bg5 {[%emt 0:00:00]} h6 {[%emt 0:00:05]} 4. Bh4 {[%emt 0:00:02]} c5 {[%emt 0:00:39]} 5. c3 {[%emt 0:00:39]} b6 {[%emt 0:00:40]} 6. e3 {[%emt 0:01:31]} Bb7 {[%emt 0:00:50]} 7. Bd3 {[%emt 0:00:06]} Be7 {[%emt 0:00:09]} 8. Nbd2 {[%emt 0:01:36]} O-O {[%emt 0:01:20]} 9. O-O {[%emt 0:00:09]} Nc6 {[%emt 0:00:13]} 10. Qe2 {[%emt 0:00:30]} cxd4 {[%emt 0:00:39]} 11. Bxf6 {[%emt 0:01:03]} Bxf6 {[%emt 0:00:50]} 12. exd4 {[%emt 0:00:05]} Qc7 {[%emt 0:05:04]} 13. Ba6 {[%emt 0:00:55]} Bxa6 {[%emt 0:01:39]} 14. Qxa6 {[%emt 0:00:06]} b5 {[%emt 0:08:34]} 15. Ne4 {[%emt 0:06:36]} Rab8 {[%emt 0:00:55]} 16. Nxf6+ {[%emt 0:01:22]} gxf6 {[%emt 0:00:07]} 17. Qa3 {[%emt 0:08:42]} d5 {[%emt 0:08:38]} 18. Qb3 {[%emt 0:13:41]} Qf4 {[%emt 0:01:10]} 19. Ne1 {[%emt 0:07:52]} Kh8 {[%emt 0:14:59]} 20. Rd1 {[%emt 0:07:27]} Rg8 {[%emt 0:02:19]} 21. Rd3 {[%emt 0:03:14]} Ne7 {[%emt 0:12:24]} 22. Qd1 {[%emt 0:07:41]} Nf5 {[%emt 0:04:39]} 23. Rf3 {[%emt 0:07:15]} Qe4 {[%emt 0:04:20]} 24. Qd3 {[%emt 0:04:50]} b4 {[%emt 0:04:54]} 25. Qxe4 {[%emt 0:09:58]} dxe4 {[%emt 0:00:06]} 26. Rf4 {[%emt 0:00:32]} bxc3 {[%emt 0:09:18]} 27. bxc3 {[%emt 0:00:14]} Nd6 {[%emt 0:06:55]} 28. Nc2 {[%emt 0:01:30]} f5 {[%emt 0:02:08]} 29. Ne3 {[%emt 0:01:43]} Rbc8 {[%emt 0:03:58]} 30. Nd1 {[%emt 0:04:56]} Rc4 {[%emt 0:04:17]} 31. f3 {[%emt 0:02:50]} Rb8 {[%emt 0:02:30]} 32. g4 {[%emt 0:04:19]} Rg8 {[%emt 0:01:07]} 33. Kh1 {[%emt 0:01:13]} exf3 {[%emt 0:00:25]} 34. gxf5 {[%emt 0:00:26]} Nxf5 {[%emt 0:00:32]} 35. R4xf3 {[%emt 0:00:16]} Ra4 {[%emt 0:00:29]} 36. R1f2 {[%emt 0:02:53]} Rb8 {[%emt 0:00:18]} 37. Rd3 {[%emt 0:00:28]} Rb1 {[%emt 0:00:26]} 38. d5 {[%emt 0:01:42]} Ra6 {[%emt 0:00:31]} 39. c4 {[%emt 0:00:21]} Kg7 {[%emt 0:00:47]} 40. Kg1 {[%emt 0:00:00]} Ne3 {[%emt 0:00:00]} 41. Rxe3 {[%emt 0:05:22]} Rxd1+ {[%emt 0:00:37]} 42. Kg2 {[%emt 0:00:17]} exd5 {[%emt 0:02:10]} 43. Ref3 {[%emt 0:02:25]} Rg6+ {[%emt 0:02:10]} 44. Kh3 {[%emt 0:02:20]} f6 {[%emt 0:01:19]} 45. Ra3 {[%emt 0:04:01]} h5 {[%emt 0:04:41]} 46. c5 {[%emt 0:02:32]} Rc1 {[%emt 0:03:02]} 47. Rff3 {[%emt 0:02:23]} Rxc5 {[%emt 0:01:15]} 48. Rxa7+ {[%emt 0:00:08]} Kh6 {[%emt 0:00:07]} 49. Rd7 {[%emt 0:01:17]} Ra5 {[%emt 0:08:31]} 50. a3 {[%emt 0:00:18]} Rc5 {[%emt 0:01:23]} 51. Rd8 {[%emt 0:01:43]} Ra5 {[%emt 0:10:33]} 52. Rd7 {[%emt 0:00:14]} Ra6 {[%emt 0:00:40]} 53. Rxd5 {[%emt 0:00:23]} Rg4 {[%emt 0:00:25]} 54. Rd8 {[%emt 0:04:16]} Kg7 {[%emt 0:00:33]} 55. Rdd3 {[%emt 0:01:49]} Kg6 {[%emt 0:00:33]} 56. Rd8 {[%emt 0:00:50]} Kg7 {[%emt 0:00:30]} 57. Rd7+ {[%emt 0:00:21]} Kg6 {[%emt 0:00:08]} 58. Rd8 {[%emt 0:00:03]} Kg7 {[%emt 0:00:55]} 59. Rd7+ {[%emt 0:00:09]} Kg6 {[%emt 0:00:03]} 1/2-1/2

[Event "22nd ETCC Women 2019"]
[Site "Batumi"]
[Date "2019.10.26"]
[Round "3.23"]
[White "Buksa, Nataliya"]
[Black "Paulet, Iozefina"]
[Result "1-0"]
[ECO "C07"]
[WhiteElo "2410"]
[BlackElo "2288"]
[Annotator "NA"]
[PlyCount "108"]
[EventDate "2019.10.24"]
[EventType "team-tourn"]
[EventCountry "GEO"]
[SourceTitle "playchess.com"]
[Source "ChessBase"]
[SourceQuality "1"]
[WhiteTeam "Ukraine"]
[BlackTeam "Netherlands"]
[WhiteTeamCountry "UKR"]
[BlackTeamCountry "NED"]
[TimeControl "40/5400+30:1800+30"]

1. e4 {[%emt 0:00:00]} e6 {[%emt 0:00:00]} 2. d4 {[%emt 0:00:00]} d5 {[%emt 0:00:00]} 3. Nd2 {[%emt 0:00:00]} c5 {[%emt 0:00:00]} 4. Ngf3 {[%emt 0:00:02]} cxd4 {[%emt 0:00:12]} 5. Nxd4 {[%emt 0:00:03]} Nc6 {[%emt 0:00:04]} 6. Bb5 {[%emt 0:00:19]} Bd7 {[%emt 0:00:13]} 7. Nxc6 {[%emt 0:00:25]} bxc6 {[%emt 0:00:20]} 8. Bd3 {[%emt 0:00:04]} Bd6 {[%emt 0:01:22]} 9. Qe2 {[%emt 0:00:26]} Ne7 {[%emt 0:02:07]} 10. O-O {[%emt 0:03:39]} Ng6 {[%emt 0:02:38]} 11. Nf3 {[%emt 0:00:05]} O-O {[%emt 0:03:51]} 12. c4 {[%emt 0:08:14]} Qc7 {[%emt 0:16:52]} 13. Re1 {[%emt 0:01:36]} dxe4 {[%emt 0:02:32]} 14. Bxe4 {[%emt 0:02:12]} f5 {[%emt 0:00:22]} 15. Bc2 {[%emt 0:00:53]} c5 {[%emt 0:05:13]} 16. h4 {[%emt 0:04:48]} Bc6 {[%emt 0:14:12]} 17. h5 {[%emt 0:12:21]} Bxf3 {[%emt 0:01:50]} 18. Qxf3 {[%emt 0:00:20]} Ne5 {[%emt 0:00:15]} 19. Qe2 {[%emt 0:00:03]} Rae8 {[%emt 0:17:28]} 20. Ba4 {[%emt 0:09:22]} Nc6 {[%emt 0:00:16]} 21. Bxc6 {[%emt 0:01:03]} Qxc6 {[%emt 0:00:06]} 22. b3 {[%emt 0:00:20]} e5 {[%emt 0:03:00]} 23. Bb2 {[%emt 0:00:28]} Re6 {[%emt 0:00:32]} 24. Rad1 {[%emt 0:05:31]} e4 {[%emt 0:04:23]} 25. Qd2 {[%emt 0:10:11]} f4 {[%emt 0:06:09]} 26. Qd5 {[%emt 0:02:31]} Qxd5 {[%emt 0:00:09]} 27. Rxd5 {[%emt 0:00:04]} e3 {[%emt 0:03:01]} 28. Ba3 {[%emt 0:15:34]} Be7 {[%emt 0:02:13]} 29. f3 {[%emt 0:04:30]} Rc8 {[%emt 0:02:43]} 30. g3 {[%emt 0:02:28]} fxg3 {[%emt 0:00:28]} 31. Re2 {[%emt 0:01:21]} Bd6 {[%emt 0:02:49]} 32. Kg2 {[%emt 0:00:13]} h6 {[%emt 0:01:36]} 33. Bb2 {[%emt 0:05:10]} Rc7 {[%emt 0:01:18]} 34. Bc3 {[%emt 0:00:04]} Kh7 {[%emt 0:06:16]} 35. Be1 {[%emt 0:00:36]} g6 {[%emt 0:00:44]} 36. hxg6+ {[%emt 0:00:59]} Rxg6 {[%emt 0:00:56]} 37. Rxe3 {[%emt 0:00:13]} Rf7 {[%emt 0:00:27]} 38. Bc3 {[%emt 0:01:50]} Bf4 {[%emt 0:00:44]} 39. Re8 {[%emt 0:00:36]} Rg8 {[%emt 0:01:05]} 40. Rxg8 {[%emt 0:00:00]} Kxg8 {[%emt 0:00:00]} 41. Be5 {[%emt 0:05:07]} Be3 {[%emt 0:08:47]} 42. Kxg3 {[%emt 0:01:32]} a5 {[%emt 0:05:09]} 43. f4 {[%emt 0:00:48]} a4 {[%emt 0:01:19]} 44. Kf3 {[%emt 0:00:06]} Bc1 {[%emt 0:01:17]} 45. Rxc5 {[%emt 0:00:10]} a3 {[%emt 0:00:31]} 46. Rc8+ {[%emt 0:06:09]} Kh7 {[%emt 0:00:45]} 47. Rc7 {[%emt 0:00:03]} Rxc7 {[%emt 0:01:01]} 48. Bxc7 {[%emt 0:00:03]} Kg6 {[%emt 0:00:08]} 49. b4 {[%emt 0:00:29]} Kf5 {[%emt 0:00:14]} 50. b5 {[%emt 0:00:03]} Ke6 {[%emt 0:00:11]} 51. Be5 {[%emt 0:01:15]} Kd7 {[%emt 0:00:05]} 52. c5 {[%emt 0:00:05]} Bb2 {[%emt 0:00:10]} 53. c6+ {[%emt 0:00:10]} Ke6 {[%emt 0:00:58]} 54. b6 {[%emt 0:00:04]} Kd5 {Ke4+} 1-0

[Event "22nd ETCC Women 2019"]
[Site "Batumi"]
[Date "2019.10.26"]
[Round "3.23"]
[White "Mabille, Natacha"]
[Black "De Seroux, Camille"]
[Result "0-1"]
[ECO "B88"]
[WhiteElo "1939"]
[BlackElo "2140"]
[Annotator "NA"]
[PlyCount "66"]
[EventDate "2019.10.24"]
[EventType "team-tourn"]
[EventCountry "GEO"]
[SourceTitle "playchess.com"]
[Source "ChessBase"]
[SourceQuality "1"]
[WhiteTeam "Belgium"]
[BlackTeam "Switzerland"]
[WhiteTeamCountry "BEL"]
[BlackTeamCountry "SUI"]
[TimeControl "40/5400+30:1800+30"]

1. e4 {[%emt 0:00:00]} c5 {[%emt 0:00:00]} 2. Nf3 {[%emt 0:00:00]} Nc6 {[%emt 0:00:00]} 3. d4 {[%emt 0:00:20]} cxd4 {[%emt 0:00:00]} 4. Nxd4 {[%emt 0:00:08]} Nf6 {[%emt 0:00:00]} 5. Nc3 {[%emt 0:00:29]} d6 {[%emt 0:00:05]} 6. Bc4 {[%emt 0:03:05]} e6 {[%emt 0:00:34]} 7. O-O {[%emt 0:04:41]} Be7 {[%emt 0:00:34]} 8. Bg5 {[%emt 0:08:53]} O-O {[%emt 0:03:20]} 9. Bb3 {[%emt 0:09:24]} a6 {[%emt 0:03:52]} 10. Re1 {[%emt 0:07:23]} Bd7 {[%emt 0:11:57]} 11. Qd2 {[%emt 0:08:32]} h6 {[%emt 0:07:21]} 12. Be3 {[%emt 0:01:34]} Ng4 {[%emt 0:01:54]} 13. Nxc6 {[%emt 0:03:28]} Bxc6 {[%emt 0:06:07]} 14. Bf4 {[%emt 0:00:43]} b5 {[%emt 0:02:52]} 15. a3 {[%emt 0:06:26]} Qc7 {[%emt 0:02:17]} 16. Rad1 {[%emt 0:03:56]} Rfd8 {[%emt 0:01:02]} 17. Qe2 {[%emt 0:01:02]} Ne5 {[%emt 0:07:54]} 18. Bg3 {[%emt 0:03:07]} Rab8 {[%emt 0:03:26]} 19. f4 {[%emt 0:04:07]} Nc4 {[%emt 0:02:06]} 20. f5 {[%emt 0:02:45]} e5 {[%emt 0:20:34]} 21. Bxc4 {[%emt 0:01:00]} bxc4 {[%emt 0:00:10]} 22. Qxc4 {[%emt 0:00:05]} Rxb2 {[%emt 0:01:33]} 23. Nd5 {[%emt 0:19:15]} Qa7+ {[%emt 0:00:24]} 24. Bf2 {[%emt 0:00:06]} Bxd5 {[%emt 0:00:13]} 25. Qxd5 {[%emt 0:00:34]} Qc7 {[%emt 0:03:02]} 26. c4 {[%emt 0:03:24]} Rc8 {[%emt 0:03:47]} 27. Rc1 {[%emt 0:01:07]} Bg5 {[%emt 0:02:11]} 28. Be3 {[%emt 0:01:12]} Bxe3+ {[%emt 0:03:28]} 29. Rxe3 {[%emt 0:00:06]} Qb6 {[%emt 0:01:18]} 30. Rcc3 {[%emt 0:02:34]} Rb1+ {[%emt 0:05:59]} 31. Kf2 {[%emt 0:00:06]} Qb2+ {[%emt 0:00:28]} 32. Kf3 {[%emt 0:00:24]} Rf1+ {[%emt 0:00:44]} 33. Kg3 {[%emt 0:01:27]} Rg1 {[%emt 0:00:19]} 0-1

[Event "22nd ETCC Women 2019"]
[Site "Batumi"]
[Date "2019.10.26"]
[Round "3.24"]
[White "Ratsma, Rosa"]
[Black "Osmak, Iulija"]
[Result "1/2-1/2"]
[ECO "C01"]
[WhiteElo "2283"]
[BlackElo "2409"]
[Annotator "NA"]
[PlyCount "159"]
[EventDate "2019.10.24"]
[EventType "team-tourn"]
[EventCountry "GEO"]
[SourceTitle "playchess.com"]
[Source "ChessBase"]
[SourceQuality "1"]
[WhiteTeam "Netherlands"]
[BlackTeam "Ukraine"]
[WhiteTeamCountry "NED"]
[BlackTeamCountry "UKR"]
[TimeControl "40/5400+30:1800+30"]

1. e4 {[%emt 0:00:00]} e6 {[%emt 0:00:00]} 2. d4 {[%emt 0:00:00]} d5 {[%emt 0:00:00]} 3. exd5 {[%emt 0:00:00]} exd5 {[%emt 0:00:00]} 4. Nf3 {[%emt 0:00:00]} Nc6 {[%emt 0:00:26]} 5. Nc3 {[%emt 0:00:11]} Bb4 {[%emt 0:01:09]} 6. Bd3 {[%emt 0:00:27]} Bg4 {[%emt 0:01:33]} 7. O-O {[%emt 0:00:44]} Nge7 {[%emt 0:03:38]} 8. h3 {[%emt 0:00:48]} Bh5 {[%emt 0:05:59]} 9. a3 {[%emt 0:02:02]} Bxc3 {[%emt 0:00:31]} 10. bxc3 {[%emt 0:00:09]} Bg6 {[%emt 0:01:35]} 11. a4 {[%emt 0:07:45]} O-O {[%emt 0:00:47]} 12. Ba3 {[%emt 0:01:17]} Re8 {[%emt 0:01:27]} 13. Re1 {[%emt 0:01:50]} Bxd3 {[%emt 0:07:43]} 14. cxd3 {[%emt 0:01:44]} Ng6 {[%emt 0:12:24]} 15. Rxe8+ {[%emt 0:09:41]} Qxe8 {[%emt 0:01:05]} 16. Qb3 {[%emt 0:03:39]} Qd7 {[%emt 0:00:13]} 17. Re1 {[%emt 0:05:10]} f6 {[%emt 0:03:48]} 18. g3 {[%emt 0:07:23]} b6 {[%emt 0:07:56]} 19. Kg2 {[%emt 0:04:53]} Na5 {[%emt 0:01:01]} 20. Qa2 {[%emt 0:05:12]} Rd8 {[%emt 0:05:03]} 21. Bc1 {[%emt 0:12:24]} Kf7 {[%emt 0:07:02]} 22. c4 {[%emt 0:04:27]} c6 {[%emt 0:12:58]} 23. Bd2 {[%emt 0:00:59]} Nb7 {[%emt 0:00:05]} 24. a5 {[%emt 0:00:42]} bxa5 {[%emt 0:01:13]} 25. Bxa5 {[%emt 0:02:51]} Re8 {[%emt 0:00:35]} 26. Rxe8 {[%emt 0:04:07]} Kxe8 {[%emt 0:00:35]} 27. Bb4 {[%emt 0:05:28]} a5 {[%emt 0:09:02]} 28. Bxa5 {[%emt 0:00:50]} h5 {[%emt 0:00:11]} 29. Bd2 {[%emt 0:04:49]} Nd8 {[%emt 0:01:15]} 30. Qa8 {[%emt 0:02:06]} Kf7 {[%emt 0:02:39]} 31. Qb8 {[%emt 0:02:36]} Ne6 {[%emt 0:01:12]} 32. Be3 {[%emt 0:00:57]} Ngf8 {[%emt 0:05:36]} 33. h4 {[%emt 0:02:53]} Ng6 {[%emt 0:01:20]} 34. c5 {[%emt 0:01:58]} Qc7 {[%emt 0:01:52]} 35. Qa8 {[%emt 0:02:23]} Qd7 {[%emt 0:01:57]} 36. Qb8 {[%emt 0:00:38]} Qc7 {[%emt 0:00:24]} 37. Qxc7+ {[%emt 0:01:28]} Nxc7 {[%emt 0:00:03]} 38. Nd2 {[%emt 0:02:04]} Ke6 {[%emt 0:01:38]} 39. Nb3 {[%emt 0:01:24]} Ne7 {[%emt 0:00:57]} 40. f3 {[%emt 0:00:00]} Na6 {[%emt 0:00:00]} 41. Bd2 {[%emt 0:04:33]} Nc7 {[%emt 0:09:30]} 42. g4 {[%emt 0:02:05]} g6 {[%emt 0:00:38]} 43. Kf2 {[%emt 0:00:57]} Kd7 {[%emt 0:05:20]} 44. Nc1 {[%emt 0:02:17]} Ne6 {[%emt 0:03:36]} 45. Ne2 {[%emt 0:00:23]} Ke8 {[%emt 0:00:44]} 46. Be3 {[%emt 0:08:27]} Kf7 {[%emt 0:01:18]} 47. Kg3 {[%emt 0:02:23]} Nc8 {[%emt 0:02:28]} 48. Bf2 {[%emt 0:01:49]} Na7 {[%emt 0:01:18]} 49. f4 {[%emt 0:02:07]} Ng7 {[%emt 0:04:20]} 50. f5 {[%emt 0:03:56]} gxf5 {[%emt 0:01:26]} 51. gxh5 {[%emt 0:00:22]} Nxh5+ {[%emt 0:00:04]} 52. Kf3 {[%emt 0:00:11]} Nb5 {[%emt 0:05:54]} 53. Nf4 {[%emt 0:01:35]} Ng7 {[%emt 0:00:11]} 54. h5 {[%emt 0:00:53]} Nc7 {[%emt 0:00:21]} 55. Be3 {[%emt 0:03:06]} Nge6 {[%emt 0:01:17]} 56. Ng6 {[%emt 0:01:06]} Ng7 {[%emt 0:01:24]} 57. Nf4 {[%emt 0:01:54]} Nge6 {[%emt 0:00:05]} 58. Ng6 {[%emt 0:01:52]} Ng7 {[%emt 0:00:17]} 59. Ne7 {[%emt 0:00:35]} Nxh5 {[%emt 0:01:08]} 60. Nxc6 {[%emt 0:00:13]} Ke6 {[%emt 0:00:29]} 61. Nb4 {[%emt 0:00:39]} Nb5 {[%emt 0:00:49]} 62. Nc2 {[%emt 0:00:23]} Kd7 {[%emt 0:00:50]} 63. Bg1 {[%emt 0:00:25]} Ng7 {[%emt 0:00:20]} 64. Ke3 {[%emt 0:00:44]} Ne6 {[%emt 0:00:33]} 65. Bh2 {[%emt 0:00:25]} Nd8 {[%emt 0:00:28]} 66. Nb4 {[%emt 0:00:19]} Nc6 {[%emt 0:00:30]} 67. Nxd5 {[%emt 0:01:02]} Ncxd4 {[%emt 0:00:07]} 68. Nxf6+ {[%emt 0:00:33]} Kc6 {[%emt 0:00:07]} 69. Be5 {[%emt 0:00:34]} Kxc5 {[%emt 0:01:05]} 70. Kf4 {[%emt 0:00:19]} Ne2+ {[%emt 0:00:39]} 71. Kxf5 {[%emt 0:00:09]} Nc1 {[%emt 0:00:06]} 72. Ne4+ {[%emt 0:00:25]} Kd5 {[%emt 0:00:29]} 73. Nf6+ {[%emt 0:00:12]} Kc5 {[%emt 0:00:27]} 74. Ke4 {[%emt 0:00:08]} Nd6+ {[%emt 0:00:55]} 75. Ke3 {[%emt 0:00:44]} Nxd3 {[%emt 0:00:25]} 76. Kxd3 {[%emt 0:00:06]} Nf7 {[%emt 0:00:15]} 77. Bf4 {[%emt 0:00:30]} Nd6 {[%emt 0:00:29]} 78. Nd7+ {[%emt 0:00:13]} Kd5 {[%emt 0:00:18]} 79. Nb6+ {[%emt 0:00:22]} Kc6 {[%emt 0:00:06]} 80. Bxd6 {[%emt 0:00:20]} 1/2-1/2

[Event "22nd ETCC Women 2019"]
[Site "Batumi"]
[Date "2019.10.26"]
[Round "3.24"]
[White "Pellicoro, Nathalie"]
[Black "Cuvelier, Annelies"]
[Result "0-1"]
[ECO "C50"]
[WhiteElo "1967"]
[BlackElo "1844"]
[Annotator "NA"]
[PlyCount "102"]
[EventDate "2019.10.24"]
[EventType "team-tourn"]
[EventCountry "GEO"]
[SourceTitle "playchess.com"]
[Source "ChessBase"]
[SourceQuality "1"]
[WhiteTeam "Switzerland"]
[BlackTeam "Belgium"]
[WhiteTeamCountry "SUI"]
[BlackTeamCountry "BEL"]
[TimeControl "40/5400+30:1800+30"]

1. e4 {[%emt 0:00:00]} e5 {[%emt 0:00:00]} 2. Nf3 {[%emt 0:00:00]} Nc6 {[%emt 0:00:00]} 3. Bc4 {[%emt 0:00:07]} Bc5 {[%emt 0:00:00]} 4. d3 {[%emt 0:00:20]} Nf6 {[%emt 0:00:44]} 5. Bg5 {[%emt 0:00:10]} h6 {[%emt 0:00:49]} 6. Bh4 {[%emt 0:00:21]} d6 {[%emt 0:00:40]} 7. c3 {[%emt 0:00:33]} a6 {[%emt 0:04:03]} 8. b4 {[%emt 0:01:30]} Ba7 {[%emt 0:02:38]} 9. a4 {[%emt 0:00:55]} Bd7 {[%emt 0:10:50]} 10. Qb3 {[%emt 0:02:39]} O-O {[%emt 0:01:59]} 11. Nbd2 {[%emt 0:07:46]} Qe7 {[%emt 0:02:18]} 12. O-O {[%emt 0:01:36]} Be6 {[%emt 0:02:31]} 13. Rfe1 {[%emt 0:02:57]} g5 {[%emt 0:08:01]} 14. Bg3 {[%emt 0:03:33]} Nh5 {[%emt 0:01:55]} 15. Nf1 {[%emt 0:10:22]} Bxc4 {[%emt 0:06:29]} 16. Qxc4 {[%emt 0:06:41]} Qe6 {[%emt 0:01:24]} 17. Ne3 {[%emt 0:19:48]} Bxe3 {[%emt 0:03:19]} 18. Rxe3 {[%emt 0:01:09]} Qxc4 {[%emt 0:01:53]} 19. dxc4 {[%emt 0:00:02]} f5 20. exf5 Rxf5 {[%emt 0:06:59]} 21. a5 {[%emt 0:05:25]} Kg7 {[%emt 0:15:02]} 22. c5 {[%emt 0:01:03]} Nxg3 {[%emt 0:03:28]} 23. hxg3 {[%emt 0:01:38]} g4 {[%emt 0:02:52]} 24. Nh4 {[%emt 0:01:20]} Rf6 {[%emt 0:00:30]} 25. cxd6 {[%emt 0:00:34]} cxd6 {[%emt 0:00:17]} 26. Rd1 {[%emt 0:01:09]} Rd8 {[%emt 0:04:18]} 27. Red3 {[%emt 0:00:36]} Kf7 {[%emt 0:00:12]} 28. f3 {[%emt 0:06:10]} h5 {[%emt 0:01:15]} 29. Rd5 {[%emt 0:07:34]} Ke6 {[%emt 0:02:43]} 30. f4 {[%emt 0:01:00]} Ne7 {[%emt 0:00:46]} 31. Rxe5+ {[%emt 0:01:08]} dxe5 {[%emt 0:00:28]} 32. Rxd8 {[%emt 0:00:06]} exf4 {[%emt 0:02:09]} 33. gxf4 {[%emt 0:01:34]} Rxf4 {[%emt 0:00:32]} 34. Re8 {[%emt 0:04:02]} Rf7 {[%emt 0:05:58]} 35. Ng6 {[%emt 0:04:32]} Kd7 {[%emt 0:00:09]} 36. Rxe7+ {[%emt 0:00:39]} Rxe7 {[%emt 0:00:05]} 37. Nxe7 {[%emt 0:00:07]} Kxe7 {[%emt 0:00:02]} 38. g3 {[%emt 0:01:09]} Ke6 {[%emt 0:00:16]} 39. c4 {[%emt 0:03:32]} Ke5 {[%emt 0:00:24]} 40. b5 Kd4 41. bxa6 {[%emt 0:02:47]} bxa6 {[%emt 0:00:14]} 42. Kf2 {[%emt 0:00:29]} Kxc4 {[%emt 0:00:04]} 43. Ke3 {[%emt 0:00:09]} Kb5 {[%emt 0:00:06]} 44. Kf4 {[%emt 0:00:30]} Kxa5 {[%emt 0:00:05]} 45. Kg5 {[%emt 0:00:08]} Kb5 {[%emt 0:00:12]} 46. Kxh5 {[%emt 0:00:05]} a5 {[%emt 0:00:05]} 47. Kxg4 {[%emt 0:00:07]} a4 {[%emt 0:00:02]} 48. Kf5 {[%emt 0:00:19]} a3 {[%emt 0:00:03]} 49. g4 {[%emt 0:00:06]} a2 {[%emt 0:00:03]} 50. g5 {[%emt 0:00:06]} a1=Q {[%emt 0:00:04]} 51. g6 {[%emt 0:00:07]} Qg7 {[%emt 0:00:04]} 0-1

[Event "22nd ETCC Women 2019"]
[Site "Batumi"]
[Date "2019.10.26"]
[Round "3.25"]
[White "Exler, Veronika"]
[Black "Balajayeva, Khanim"]
[Result "0-1"]
[ECO "C55"]
[WhiteElo "2222"]
[BlackElo "2368"]
[Annotator "NA"]
[PlyCount "62"]
[EventDate "2019.10.24"]
[EventType "team-tourn"]
[EventCountry "GEO"]
[SourceTitle "playchess.com"]
[Source "ChessBase"]
[SourceQuality "1"]
[WhiteTeam "Austria"]
[BlackTeam "Azerbaijan"]
[WhiteTeamCountry "AUT"]
[BlackTeamCountry "AZE"]
[TimeControl "40/5400+30:1800+30"]

1. e4 {[%emt 0:00:00]} e5 {[%emt 0:00:00]} 2. Nf3 {[%emt 0:00:00]} Nc6 {[%emt 0:00:00]} 3. d4 {[%emt 0:00:00]} exd4 {[%emt 0:00:00]} 4. Bc4 {[%emt 0:00:00]} Nf6 {[%emt 0:00:00]} 5. e5 {[%emt 0:00:00]} d5 {[%emt 0:00:27]} 6. Bb5 {[%emt 0:00:00]} Nd7 {[%emt 0:01:05]} 7. O-O {[%emt 0:21:58]} Be7 {[%emt 0:00:21]} 8. Bxc6 {[%emt 0:27:29]} bxc6 {[%emt 0:01:10]} 9. Nxd4 {[%emt 0:10:46]} Nb8 {[%emt 0:01:10]} 10. f4 {[%emt 0:00:19]} c5 {[%emt 0:03:39]} 11. Ne2 {[%emt 0:00:06]} f6 {[%emt 0:09:29]} 12. Nec3 {[%emt 0:01:39]} c6 {[%emt 0:03:13]} 13. exf6 {[%emt 0:00:35]} Bxf6 {[%emt 0:00:31]} 14. Re1+ {[%emt 0:00:20]} Kf7 {[%emt 0:03:10]} 15. Nd2 {[%emt 0:04:02]} Re8 {[%emt 0:05:56]} 16. Nf3 {[%emt 0:03:28]} Bg4 {[%emt 0:06:46]} 17. Rxe8 {[%emt 0:07:15]} Qxe8 {[%emt 0:00:51]} 18. Bd2 {[%emt 0:05:13]} Kg8 {[%emt 0:08:25]} 19. h3 {[%emt 0:00:04]} Bxf3 {[%emt 0:02:13]} 20. Qxf3 {[%emt 0:00:07]} Na6 {[%emt 0:00:53]} 21. Re1 {[%emt 0:02:48]} Qf7 {[%emt 0:01:27]} 22. Na4 {[%emt 0:03:31]} c4 {[%emt 0:18:56]} 23. Bc3 {[%emt 0:03:08]} Rf8 {[%emt 0:02:02]} 24. Bxf6 {[%emt 0:03:39]} Qxf6 {[%emt 0:00:08]} 25. g3 Nb4 {[%emt 0:01:15]} 26. Qf2 {[%emt 0:01:39]} Qf5 {[%emt 0:04:58]} 27. Re2 Nxa2 {[%emt 0:03:43]} 28. Kg2 {[%emt 0:04:31]} Nb4 {[%emt 0:00:27]} 29. c3 {[%emt 0:00:20]} Nd3 {[%emt 0:00:49]} 30. Qxa7 {[%emt 0:00:04]} h5 {[%emt 0:00:49]} 31. h4 {[%emt 0:00:47]} Qg4 {[%emt 0:01:01]} 0-1

[Event "22nd ETCC Women 2019"]
[Site "Batumi"]
[Date "2019.10.26"]
[Round "3.25"]
[White "Machlik, Monika"]
[Black "Stojkovska, Monika"]
[Result "1/2-1/2"]
[ECO "A40"]
[WhiteElo "2159"]
[BlackElo "2108"]
[Annotator "NA"]
[PlyCount "86"]
[EventDate "2019.10.24"]
[EventType "team-tourn"]
[EventCountry "GEO"]
[SourceTitle "playchess.com"]
[Source "ChessBase"]
[SourceQuality "1"]
[WhiteTeam "Norway"]
[BlackTeam "Macedonia"]
[WhiteTeamCountry "NOR"]
[BlackTeamCountry "MKD"]
[TimeControl "40/5400+30:1800+30"]

1. d4 {[%emt 0:00:00]} e6 {[%emt 0:00:00]} 2. c4 {[%emt 0:00:00]} Nf6 {[%emt 0:00:00]} 3. g3 {[%emt 0:00:05]} c5 {[%emt 0:00:09]} 4. d5 {[%emt 0:02:09]} exd5 {[%emt 0:00:27]} 5. cxd5 {[%emt 0:00:09]} b5 {[%emt 0:00:21]} 6. Bg2 {[%emt 0:03:05]} d6 {[%emt 0:02:01]} 7. e4 {[%emt 0:21:48]} g6 {[%emt 0:05:44]} 8. Ne2 {[%emt 0:05:15]} Bg7 {[%emt 0:05:55]} 9. O-O {[%emt 0:14:41]} O-O {[%emt 0:10:24]} 10. Nd2 {[%emt 0:06:16]} Nbd7 {[%emt 0:03:14]} 11. a4 {[%emt 0:01:35]} b4 {[%emt 0:04:56]} 12. Nc4 {[%emt 0:08:55]} Nb6 {[%emt 0:01:21]} 13. Qc2 {[%emt 0:02:04]} Ba6 {[%emt 0:01:20]} 14. Nxb6 {[%emt 0:04:56]} Qxb6 {[%emt 0:03:45]} 15. Re1 {[%emt 0:01:28]} Rfe8 {[%emt 0:00:42]} 16. a5 {[%emt 0:08:53]} Qb5 {[%emt 0:07:15]} 17. Nf4 {[%emt 0:04:18]} Ng4 {[%emt 0:11:20]} 18. Bf1 {[%emt 0:05:24]} c4 {[%emt 0:05:28]} 19. h3 {[%emt 0:02:23]} Ne5 {[%emt 0:00:43]} 20. Kg2 {[%emt 0:00:15]} Rac8 {[%emt 0:07:31]} 21. Bd2 {[%emt 0:01:40]} b3 {[%emt 0:01:37]} 22. Qb1 {[%emt 0:01:33]} Nd3 {[%emt 0:05:12]} 23. Nxd3 {[%emt 0:01:35]} cxd3 {[%emt 0:00:04]} 24. Re3 {[%emt 0:00:37]} Rc2 {[%emt 0:03:42]} 25. Bxd3 {[%emt 0:00:42]} Qxd3 {[%emt 0:00:38]} 26. Rxd3 {[%emt 0:00:15]} Bxd3 {[%emt 0:00:04]} 27. Qd1 {[%emt 0:01:28]} Bxb2 {[%emt 0:05:22]} 28. Rb1 {[%emt 0:01:15]} Rxe4 {[%emt 0:00:47]} 29. Bh6 {[%emt 0:01:07]} Be2 {[%emt 0:02:29]} 30. Qxc2 {[%emt 0:00:34]} bxc2 {[%emt 0:00:09]} 31. Rxb2 {[%emt 0:00:02]} f5 {[%emt 0:03:54]} 32. Rxc2 {[%emt 0:00:04]} Bc4 {[%emt 0:00:11]} 33. Rd2 {[%emt 0:01:15]} Re5 {[%emt 0:00:45]} 34. Bf4 {[%emt 0:00:20]} Rxd5 {[%emt 0:00:15]} 35. Rxd5 {[%emt 0:00:08]} Bxd5+ {[%emt 0:00:03]} 36. Kg1 {[%emt 0:00:49]} Kf7 {[%emt 0:01:13]} 37. Bxd6 {[%emt 0:00:03]} Ke6 {[%emt 0:00:09]} 38. Bf4 {[%emt 0:00:09]} Bc4 {[%emt 0:00:22]} 39. h4 {[%emt 0:00:10]} Kd5 {[%emt 0:00:10]} 40. Be3 {[%emt 0:00:00]} a6 {[%emt 0:00:00]} 41. Bf4 {[%emt 0:00:25]} Kc6 {[%emt 0:00:14]} 42. Bg5 {[%emt 0:00:52]} Kb5 {[%emt 0:00:45]} 43. Bd2 {[%emt 0:00:48]} Bd3 {[%emt 0:00:07]} 1/2-1/2